bitfinex/quotes_BTCUSD_20250221
["timestamp","ask_amount","ask_price","bid_price","bid_amount"]
[1740111683435,1.30872389,98334.0,98333.0,0.0017016]
[1740111686796,1.30172389,98334.0,98333.0,0.0017016]
[1740111687262,1.30372389,98334.0,98333.0,0.0017016]
[1740111688048,1.30572389,98334.0,98333.0,0.0017016]
[1740111688661,1.30372389,98334.0,98333.0,0.0017016]
[1740111688819,1.30572389,98334.0,98333.0,0.0017016]
[1740111689181,1.30372389,98334.0,98333.0,0.0017016]
[1740111689504,1.30572389,98334.0,98333.0,0.0017016]
[1740111692461,1.30372389,98334.0,98333.0,0.0017016]
[1740111692837,1.30272389,98334.0,98333.0,0.0017016]
[1740111693381,1.30372389,98334.0,98333.0,0.0017016]
[1740111701265,1.27672389,98334.0,98333.0,0.0017016]
[1740111701492,1.12672389,98334.0,98333.0,0.0017016]
[1740111701611,1.13372389,98334.0,98333.0,0.0017016]
[1740111702185,1.13272389,98334.0,98333.0,0.0017016]
[1740111702351,1.13172389,98334.0,98333.0,0.0017016]
[1740111703496,1.13272389,98334.0,98333.0,0.0017016]
[1740111703866,1.13172389,98334.0,98333.0,0.0017016]
[1740111716774,0.95918289,98334.0,98333.0,0.0017016]
[1740111716977,1.11172389,98334.0,98333.0,0.0017016]
[1740111717180,1.11172389,98334.0,98333.0,0.0844016]
[1740111717379,1.10472389,98334.0,98333.0,0.18704729]
[1740111717580,1.11172389,98334.0,98333.0,0.23214729]
[1740111718155,1.11172389,98334.0,98333.0,0.23414729]
[1740111718563,1.11172389,98334.0,98333.0,0.23214729]
[1740111718770,1.11172389,98334.0,98333.0,0.23614729]
[1740111718965,1.11272389,98334.0,98333.0,0.23614729]
[1740111719172,0.96018289,98334.0,98333.0,0.23614729]
[1740111719378,1.11172389,98334.0,98333.0,0.23614729]
[1740111719849,1.11172389,98334.0,98333.0,0.24114729]
[1740111720383,1.11172389,98334.0,98333.0,0.15844729]
[1740111720723,0.95918289,98334.0,98333.0,0.23644729]
[1740111720922,0.95918289,98334.0,98333.0,0.38898929]
[1740111721143,0.95918289,98334.0,98333.0,0.23644729]
[1740111721823,0.95918289,98334.0,98333.0,0.23144729]
[1740111722768,0.95918289,98334.0,98333.0,0.22744729]
[1740111722925,0.96018289,98334.0,98333.0,0.23444729]
[1740111723125,0.96118289,98334.0,98333.0,0.24044729]
[1740111726050,0.96118289,98334.0,98333.0,0.39298929]
[1740111726282,0.96118289,98334.0,98333.0,0.42471785]
[1740111727205,0.96018289,98334.0,98333.0,0.41771785]
[1740111727607,0.95918289,98334.0,98333.0,0.41171785]
[1740111727989,0.95918289,98334.0,98333.0,0.41771785]
[1740111728195,0.95918289,98334.0,98333.0,0.41171785]
[1740111728599,0.95918289,98334.0,98333.0,0.41871785]
[1740111729139,0.95918289,98334.0,98333.0,0.42571785]
[1740111729340,0.95918289,98334.0,98333.0,0.39398929]
[1740111729559,0.95918289,98334.0,98333.0,0.38698929]
[1740111729945,0.95918289,98334.0,98333.0,0.39398929]
[1740111747403,0.95918289,98334.0,98333.0,0.42566918]
[1740111749013,0.95918289,98334.0,98333.0,0.57566918]
[1740111750595,0.95918289,98334.0,98333.0,2.07566918]
[1740111764913,0.95918289,98334.0,98333.0,1.99766918]
[1740111781963,0.95918289,98334.0,98333.0,1.95256918]
[1740111790197,0.96115794,98334.0,98333.0,1.95256918]
[1740111795142,0.96115794,98334.0,98333.0,7.00256918]
[1740111796213,0.95415794,98334.0,98333.0,7.00256918]
[1740111796363,0.95415794,98334.0,98333.0,7.14771003]
[1740111797263,0.95415794,98334.0,98333.0,7.14071003]
[1740111797654,0.95415794,98334.0,98333.0,7.14771003]
[1740111798176,0.95415794,98334.0,98333.0,7.14071003]
[1740111798486,0.95415794,98334.0,98333.0,7.12616918]
[1740111798696,0.95415794,98334.0,98333.0,7.13316918]
[1740111799332,0.63185794,98334.0,98333.0,7.13316918]
[1740111801374,0.63185794,98334.0,98333.0,7.11916918]
[1740111801907,0.63185794,98334.0,98333.0,7.13316918]
[1740111802893,0.63185794,98334.0,98333.0,7.12616918]
[1740111803404,0.63185794,98334.0,98333.0,7.13316918]
[1740111805489,0.608832,98334.0,98333.0,7.13316918]
[1740111810222,0.608832,98334.0,98333.0,2.08316918]
[1740111810364,0.608832,98334.0,98333.0,2.00166918]
[1740111810551,0.608832,98334.0,98333.0,7.05166918]
[1740111812052,0.60403294,98334.0,98333.0,7.05166918]
[1740111812212,0.6088593,98334.0,98333.0,7.05166918]
[1740111817908,0.6088593,98334.0,98333.0,6.90138873]
[1740111818504,0.6088593,98334.0,98333.0,6.90858873]
[1740111821135,0.6088593,98334.0,98333.0,1.85858873]
[1740111821353,0.6088593,98334.0,98333.0,2.77028873]
[1740111821575,0.6088593,98334.0,98333.0,2.75768873]
[1740111827150,0.6067141,98334.0,98333.0,2.75768873]
[1740111827773,0.6067141,98334.0,98333.0,3.45768873]
[1740111828799,0.60205789,98334.0,98333.0,3.45768873]
[1740111831610,0.60205789,98334.0,98333.0,7.75948873]
[1740111838254,0.50205789,98334.0,98333.0,7.75948873]
[1740111841481,0.50205789,98334.0,98333.0,7.05948873]
[1740111841897,0.50205789,98334.0,98333.0,2.00948873]
[1740111842304,0.50205789,98334.0,98333.0,7.05948873]
[1740111843779,0.50905789,98334.0,98333.0,2.32498873]
[1740111843992,0.63515789,98334.0,98333.0,0.14974673]
[1740111844206,0.63515789,98334.0,98333.0,0.15694673]
[1740111844419,0.63515789,98334.0,98333.0,0.30948873]
[1740111844668,0.78769889,98334.0,98333.0,0.15694673]
[1740111844878,0.78769889,98334.0,98333.0,0.11826684]
[1740111845318,0.78769889,98334.0,98333.0,0.12526684]
[1740111845734,0.78769889,98334.0,98333.0,0.11826684]
[1740111846991,1.10999889,98334.0,98333.0,0.12526684]
[1740111851241,0.95745789,98334.0,98333.0,0.12526684]
[1740111852089,0.95745789,98334.0,98333.0,0.11826684]
[1740111853833,0.95745789,98334.0,98333.0,0.11126684]
[1740111854046,0.95745789,98334.0,98333.0,0.11826684]
[1740111854626,0.95745789,98334.0,98333.0,0.11126684]
[1740111854865,0.95745789,98334.0,98333.0,0.12526684]
[1740111855830,0.95745789,98334.0,98333.0,1.62526684]
[1740111857725,0.83135789,98334.0,98333.0,1.77780884]
[1740111859582,0.83135789,98334.0,98333.0,1.80945151]
[1740111859787,0.83135789,98334.0,98333.0,1.77780884]
[1740111860438,0.83135789,98334.0,98333.0,0.27780884]
[1740111861402,0.83135789,98334.0,98333.0,0.30945398]
[1740111861607,0.83135789,98334.0,98333.0,0.27780884]
[1740111861998,0.83135789,98334.0,98333.0,0.30942758]
[1740111862929,0.83135789,98334.0,98333.0,0.27778266]
[1740111864529,0.83135789,98334.0,98333.0,0.30943288]
[1740111872295,0.83135789,98334.0,98333.0,1.80943288]
[1740111872932,0.83135789,98334.0,98333.0,0.30943288]
[1740111878901,0.83135789,98334.0,98333.0,0.40061161]
[1740111880187,0.83135789,98334.0,98333.0,0.24806961]
[1740111880656,0.83135789,98334.0,98333.0,0.40061161]
[1740111881801,0.83135789,98334.0,98333.0,0.30943288]
[1740111886510,0.83135789,98334.0,98333.0,0.15689088]
[1740111888786,1.06719889,98334.0,98333.0,0.14969088]
[1740111889211,1.13499889,98334.0,98333.0,0.12524066]
[1740111889964,1.13499889,98334.0,98333.0,0.11824066]
[1740111890624,1.13499889,98334.0,98333.0,0.12424066]
[1740111909353,1.08719889,98334.0,98333.0,0.12424066]
[1740111930460,1.00389889,98334.0,98333.0,0.12424066]
[1740111942203,1.00389889,98334.0,98333.0,0.01439497]
[1740111942443,1.08599889,98334.0,98333.0,0.01439497]
[1740111942916,1.0963656,98334.0,98333.0,0.01439497]
[1740111943170,1.2463656,98334.0,98333.0,0.01439497]
[1740111943445,1.26090645,98334.0,98333.0,0.00739497]
[1740111943688,1.30860645,98334.0,98333.0,0.01239497]
[1740111943946,1.30860645,98334.0,98333.0,0.00639497]
[1740111944177,1.30860645,98334.0,98333.0,0.00139497]
[1740111944413,1.30860645,98334.0,98333.0,0.00439497]
[1740111944617,1.30860645,98334.0,98333.0,0.00839497]
[1740111944836,1.30860645,98334.0,98333.0,0.00539497]
[1740111945560,1.30860645,98334.0,98333.0,0.00139497]
[1740111946753,1.30822343,98334.0,98333.0,0.00139497]
[1740111957451,1.26052343,98334.0,98333.0,0.00139497]
[1740111961044,1.17842343,98334.0,98333.0,0.00139497]
[1740111961525,1.16805672,98334.0,98333.0,0.00139497]
[1740111961729,1.15351587,98334.0,98333.0,0.00139497]
[1740111962144,1.22921587,98334.0,98333.0,0.00139497]
[1740111965575,1.22921587,98334.0,98333.0,0.00239497]
[1740111966311,1.22921587,98334.0,98333.0,0.00339497]
[1740111968386,1.15351587,98334.0,98333.0,0.00339497]
[1740111970023,1.14651587,98334.0,98333.0,0.00339497]
[1740111970206,1.15351587,98334.0,98333.0,0.00339497]
[1740111979443,1.14651587,98334.0,98333.0,0.00339497]
[1740111979668,1.15351587,98334.0,98333.0,0.00339497]
[1740111984557,1.15351587,98334.0,98333.0,0.00239497]
[1740111984741,1.15351587,98334.0,98333.0,0.00139497]
[1740111991646,1.15351587,98334.0,98317.0,0.09854418]
[1740111991647,0.159561,98321.0,98320.0,0.10409004]
[1740111991848,0.159561,98321.0,98320.0,0.10277568]
[1740111992845,0.179561,98321.0,98320.0,0.10777568]
[1740111993261,0.179561,98321.0,98320.0,0.00512999]
[1740111993382,0.179561,98321.0,98320.0,0.00012999]
[1740111993781,0.501861,98321.0,98320.0,0.00012999]
[1740111994047,0.651861,98321.0,98320.0,0.00412999]
[1740111994255,0.501861,98321.0,98320.0,0.02559947]
[1740111994448,0.501861,98321.0,98320.0,0.02159947]
[1740111994782,0.501861,98321.0,98320.0,0.02759947]
[1740111995475,0.501861,98321.0,98320.0,0.02959947]
[1740111995633,0.501861,98321.0,98320.0,0.02159947]
[1740111995834,0.501861,98321.0,98320.0,0.02359947]
[1740111996039,0.47004551,98321.0,98320.0,0.03760764]
[1740111996239,0.47004551,98321.0,98320.0,0.03560764]
[1740111996651,0.47004551,98321.0,98320.0,0.03760764]
[1740111996852,0.47004551,98321.0,98320.0,0.02359947]
[1740111997283,0.47004551,98321.0,98320.0,0.02559947]
[1740111998369,0.47004551,98321.0,98320.0,0.02359947]
[1740111998574,0.47004551,98321.0,98320.0,0.01226434]
[1740111998783,0.47004551,98321.0,98320.0,0.01626434]
[1740112001180,0.47004551,98321.0,98320.0,0.01796614]
[1740112001808,0.47004551,98321.0,98320.0,0.01049862]
[1740112004174,0.47004551,98321.0,98320.0,0.00849862]
[1740112004667,0.47004551,98321.0,98320.0,0.01049862]
[1740112005275,0.47004551,98321.0,98320.0,0.00849862]
[1740112006596,0.47004551,98321.0,98320.0,0.01049862]
[1740112013368,0.47089641,98321.0,98320.0,0.01049862]
[1740112028576,0.62089641,98321.0,98320.0,0.01049862]
[1740112032710,0.63543726,98321.0,98320.0,0.01049862]
[1740112035043,0.63543726,98321.0,98320.0,0.00583179]
[1740112036418,0.63543726,98321.0,98320.0,0.00383179]
[1740112036868,0.63543726,98321.0,98320.0,0.00183179]
[1740112037291,0.63543726,98321.0,98320.0,0.00283179]
[1740112037668,0.63543726,98321.0,98320.0,0.00383179]
[1740112068374,0.71163726,98321.0,98320.0,0.00383179]
[1740112069458,0.71163726,98321.0,98320.0,0.00283179]
[1740112069689,0.73163726,98321.0,98320.0,0.00183179]
[1740112069894,0.77863726,98321.0,98320.0,0.00183179]
[1740112070373,0.78063726,98321.0,98320.0,0.00183179]
[1740112070570,0.78263726,98321.0,98320.0,0.00183179]
[1740112070791,0.78063726,98321.0,98320.0,0.00183179]
[1740112071202,0.77863726,98321.0,98320.0,0.00183179]
[1740112071413,0.78063726,98321.0,98320.0,0.00183179]
[1740112072087,0.78363726,98321.0,98320.0,0.00183179]
[1740112072445,0.78063726,98321.0,98320.0,0.00183179]
[1740112073035,0.322595,98299.0,98298.0,0.09134418]
[1740112073315,0.65943506,98299.0,98298.0,0.09138748]
[1740112074141,0.6695058,98299.0,98298.0,0.09138748]
[1740112074337,0.65943506,98299.0,98298.0,0.09138748]
[1740112074579,0.65943506,98299.0,98298.0,0.09538748]
[1740112075120,0.65943506,98299.0,98298.0,0.0040433]
[1740112075323,0.65943506,98299.0,98298.0,0.0070433]
[1740112075735,0.66974964,98299.0,98298.0,0.0070433]
[1740112076709,0.66974964,98299.0,98298.0,0.0030433]
[1740112076905,0.66974964,98299.0,98298.0,0.0060433]
[1740112077117,0.66974964,98299.0,98298.0,0.0030433]
[1740112077486,0.66974964,98299.0,98298.0,4.33e-05]
[1740112078860,0.66974964,98299.0,98298.0,0.0030433]
[1740112079065,0.66974964,98299.0,98298.0,0.0060433]
[1740112079469,0.66974964,98299.0,98298.0,0.0030433]
[1740112079694,0.66974964,98299.0,98298.0,0.0060433]
[1740112081311,0.66974964,98299.0,98298.0,0.0077451]
[1740112081674,0.66974964,98299.0,98298.0,0.0047451]
[1740112082102,0.66974964,98299.0,98298.0,0.0037451]
[1740112082646,0.66974964,98299.0,98298.0,0.0017451]
[1740112082647,0.68974964,98299.0,98298.0,0.0017451]
[1740112082845,0.68974964,98299.0,98298.0,0.0037451]
[1740112083219,0.76904964,98299.0,98298.0,0.0057451]
[1740112084954,0.66974964,98299.0,98298.0,0.0057451]
[1740112085784,0.74804964,98299.0,98298.0,0.0057451]
[1740112089621,0.76804964,98299.0,98298.0,0.0057451]
[1740112089848,0.76804964,98299.0,98273.0,0.0866]
[1740112089849,0.02,98269.0,98268.0,0.1289]
[1740112090072,0.02,98269.0,98257.0,0.0456]
[1740112090073,0.172659,98258.0,98257.0,0.0456]
[1740112090287,0.172659,98258.0,98255.0,0.00043278]
[1740112090288,0.172662,98256.0,98255.0,0.00043278]
[1740112090883,0.32229921,98258.0,98255.0,0.14867847]
[1740112091142,0.15266,98257.0,98256.0,0.10264569]
[1740112091551,0.17266,98257.0,98256.0,0.18174569]
[1740112093281,0.17266,98257.0,98256.0,0.18774569]
[1740112093417,0.49495921,98257.0,98256.0,0.19474569]
[1740112097241,0.34229921,98257.0,98256.0,0.19474569]
[1740112097902,0.49495921,98257.0,98256.0,0.19474569]
[1740112098242,0.32229921,98257.0,98256.0,0.34740769]
[1740112098444,0.32229921,98257.0,98256.0,0.19474569]
[1740112099128,0.32229921,98257.0,98256.0,0.34740769]
[1740112099550,0.32229921,98257.0,98256.0,0.19474569]
[1740112102041,0.47495921,98257.0,98256.0,0.19474569]
[1740112105550,0.47495921,98257.0,98256.0,0.19644789]
[1740112107149,0.32229921,98257.0,98256.0,0.19644789]
[1740112114351,0.32229921,98257.0,98256.0,0.34910989]
[1740112117352,0.32229921,98257.0,98256.0,0.3808455]
[1740112118128,0.32229921,98257.0,98256.0,0.34910989]
[1740112118333,0.32229921,98257.0,98256.0,0.38084678]
[1740112128007,0.32229921,98257.0,98256.0,0.47219096]
[1740112129660,0.32229921,98257.0,98256.0,0.46619096]
[1740112130076,0.32229921,98257.0,98256.0,0.47319096]
[1740112130285,0.32229921,98257.0,98256.0,0.46619096]
[1740112130714,0.32229921,98257.0,98256.0,0.47319096]
[1740112131192,0.32229921,98257.0,98256.0,0.46619096]
[1740112131347,0.32229921,98257.0,98256.0,0.47319096]
[1740112132628,0.32229921,98257.0,98256.0,0.38184678]
[1740112133940,0.32229921,98257.0,98256.0,1.88184678]
[1740112138840,0.32229921,98257.0,98256.0,0.38184678]
[1740112143476,0.32229921,98257.0,98256.0,0.37590678]
[1740112147321,0.32229921,98257.0,98256.0,1.87590678]
[1740112148521,0.32229921,98257.0,98256.0,0.37590678]
[1740112152123,0.32229921,98257.0,98256.0,0.40647178]
[1740112154587,0.32229921,98257.0,98256.0,1.10647178]
[1740112154917,0.32229921,98257.0,98256.0,2.60647178]
[1740112155435,0.32229921,98257.0,98256.0,2.59947178]
[1740112155850,0.32229921,98257.0,98256.0,2.60647178]
[1740112156269,0.32229921,98257.0,98256.0,2.59947178]
[1740112156839,0.32229921,98257.0,98256.0,2.60647178]
[1740112157084,0.32229921,98257.0,98256.0,2.59947178]
[1740112157495,0.32229921,98257.0,98256.0,2.61347178]
[1740112158664,0.32229921,98275.0,98256.0,2.46080978]
[1740112158852,0.32229921,98275.0,98274.0,0.152634]
[1740112159060,0.32229921,98275.0,98274.0,1.31179179]
[1740112159672,0.32229921,98275.0,98274.0,1.32177472]
[1740112160303,0.32229921,98275.0,98274.0,1.32677472]
[1740112160547,0.32229921,98275.0,98274.0,1.33277472]
[1740112164242,0.32315001,98275.0,98274.0,1.33277472]
[1740112165650,0.32315001,98275.0,98274.0,1.35288709]
[1740112181116,0.32315001,98275.0,98274.0,1.34788709]
[1740112181408,0.32315001,98275.0,98274.0,1.35488709]
[1740112181619,0.32315001,98275.0,98274.0,1.34888709]
[1740112182017,0.32315001,98275.0,98274.0,1.35488709]
[1740112182407,0.32315001,98275.0,98274.0,1.34888709]
[1740112182619,0.32315001,98275.0,98274.0,1.35588709]
[1740112182822,0.32315001,98275.0,98274.0,2.85588709]
[1740112186109,0.32315001,98275.0,98274.0,1.35588709]
[1740112186614,0.32315001,98275.0,98274.0,2.85588709]
[1740112189144,0.32315001,98275.0,98274.0,1.83111188]
[1740112189676,0.32315001,98275.0,98274.0,0.33111188]
[1740112190053,0.32315001,98275.0,98274.0,1.83111188]
[1740112192968,0.32315001,98275.0,98274.0,0.33111188]
[1740112197791,0.32315001,98275.0,98274.0,1.83111188]
[1740112198417,0.32315001,98275.0,98274.0,0.33111188]
[1740112202399,0.32315001,98275.0,98274.0,1.83111188]
[1740112203439,0.32315001,98275.0,98274.0,0.33111188]
[1740112203878,0.32315001,98275.0,98274.0,1.83111188]
[1740112205683,0.72108201,98275.0,98274.0,0.04573689]
[1740112205881,0.72108201,98275.0,98274.0,0.014]
[1740112206284,0.72108201,98275.0,98274.0,0.007]
[1740112206485,0.73104809,98275.0,98274.0,0.007]
[1740112206693,0.152646,98267.0,98265.0,0.10438747]
[1740112206897,0.152646,98267.0,98266.0,0.10264569]
[1740112208597,0.233846,98267.0,98266.0,0.10964569]
[1740112209269,0.55614521,98267.0,98266.0,0.11664569]
[1740112221988,0.55699601,98267.0,98266.0,0.11664569]
[1740112231715,0.47579601,98267.0,98266.0,0.11664569]
[1740112238466,0.57279601,98267.0,98266.0,0.014]
[1740112239422,0.58733686,98267.0,98266.0,0.007]
[1740112240163,0.43469086,98267.0,98244.0,0.02075266]
[1740112240338,0.15266,98257.0,98246.0,1.02477521]
[1740112240539,0.15266,98257.0,98248.0,0.0100817]
[1740112240901,0.203541,98261.0,98248.0,0.00986432]
[1740112241103,0.152673,98249.0,98248.0,4.325e-05]
[1740112241310,0.52584021,98260.0,98248.0,4.325e-05]
[1740112241529,0.32229921,98260.0,98256.0,0.002]
[1740112242366,0.15266,98257.0,98256.0,0.002]
[1740112243016,0.15267,98251.0,98250.0,0.10438747]
[1740112243545,0.32229921,98260.0,98250.0,0.10438747]
[1740112243546,0.152668,98252.0,98250.0,0.10438747]
[1740112244630,0.152668,98252.0,98250.0,0.003]
[1740112244837,0.32229921,98251.0,98250.0,0.007]
[1740112246158,0.32229921,98251.0,98250.0,0.003]
[1740112246374,0.32229921,98251.0,98250.0,0.004]
[1740112246720,0.47496921,98251.0,98250.0,0.0087016]
[1740112247892,0.47496921,98251.0,98250.0,1.5087016]
[1740112248601,0.47496921,98251.0,98250.0,0.0087016]
[1740112249886,0.47496921,98251.0,98250.0,0.11134729]
[1740112251200,0.34229921,98251.0,98250.0,0.11134729]
[1740112251539,0.49496921,98251.0,98250.0,0.11134729]
[1740112251851,0.34229921,98251.0,98250.0,0.11134729]
[1740112256865,0.32229921,98251.0,98250.0,0.11134729]
[1740112257110,0.32229921,98251.0,98250.0,0.26401829]
[1740112257580,0.32229921,98251.0,98250.0,0.29580298]
[1740112258185,0.32229921,98251.0,98250.0,0.29180298]
[1740112258759,0.32229921,98251.0,98250.0,0.29880298]
[1740112258963,0.32229921,98251.0,98250.0,0.29180298]
[1740112259160,0.32229921,98251.0,98250.0,0.29010138]
[1740112259335,0.32229921,98251.0,98250.0,0.29710138]
[1740112259941,0.32229921,98251.0,98250.0,0.29410138]
[1740112260360,0.32229921,98251.0,98250.0,0.30010138]
[1740112260719,0.32229921,98251.0,98250.0,0.14743038]
[1740112260934,0.32229921,98251.0,98250.0,0.11564569]
[1740112267658,0.49496921,98251.0,98250.0,0.11564569]
[1740112270521,0.49496921,98251.0,98250.0,0.11734729]
[1740112301334,0.49496921,98251.0,98250.0,0.11134729]
[1740112301511,0.49496921,98251.0,98250.0,0.10434729]
[1740112302073,0.49496921,98251.0,98250.0,0.10934729]
[1740112302661,0.49496921,98251.0,98250.0,0.10634729]
[1740112302864,0.49496921,98251.0,98250.0,0.10934729]
[1740112303091,0.49496921,98251.0,98250.0,0.0067016]
[1740112310606,0.49496921,98251.0,98250.0,0.0037016]
[1740112310943,0.49496921,98251.0,98250.0,0.0047016]
[1740112311140,0.49496921,98251.0,98250.0,0.0067016]
[1740112315944,0.64496921,98251.0,98250.0,0.0067016]
[1740112321954,0.65951006,98251.0,98250.0,0.0067016]
[1740112322162,0.73491006,98251.0,98250.0,0.0067016]
[1740112323191,0.73491006,98251.0,98250.0,0.0037016]
[1740112323431,0.73491006,98251.0,98250.0,0.0047016]
[1740112323994,0.73491006,98251.0,98250.0,0.0037016]
[1740112324271,0.73491006,98251.0,98250.0,0.0027016]
[1740112332021,0.65951006,98251.0,98250.0,0.0027016]
[1740112332514,0.63951006,98251.0,98250.0,0.0027016]
[1740112332743,0.64496921,98251.0,98250.0,0.0027016]
[1740112347336,0.49496921,98251.0,98250.0,0.0027016]
[1740112348254,0.34229921,98251.0,98250.0,0.10534729]
[1740112348451,0.49496921,98251.0,98250.0,0.10534729]
[1740112354065,0.34229921,98251.0,98250.0,0.10534729]
[1740112361280,0.34229921,98251.0,98250.0,0.08958729]
[1740112362503,0.32229921,98251.0,98250.0,0.08958729]
[1740112362612,0.32229921,98251.0,98250.0,0.32065829]
[1740112363270,0.32229921,98251.0,98250.0,0.35340194]
[1740112363672,0.32229921,98251.0,98250.0,0.39950194]
[1740112364256,0.32229921,98251.0,98250.0,1.89950194]
[1740112364467,0.32229921,98251.0,98250.0,1.89850194]
[1740112364690,0.32229921,98251.0,98250.0,1.90550194]
[1740112364894,0.32229921,98251.0,98250.0,1.90950194]
[1740112365262,0.32229921,98251.0,98250.0,1.90550194]
[1740112365451,0.32229921,98251.0,98250.0,1.91150194]
[1740112367185,0.32229921,98251.0,98250.0,0.41150194]
[1740112367911,0.32229921,98251.0,98250.0,1.93159348]
[1740112368112,0.32229921,98251.0,98250.0,0.43159348]
[1740112370096,0.32229921,98251.0,98250.0,0.39984983]
[1740112370631,0.32229921,98251.0,98250.0,1.89984983]
[1740112370848,0.32229921,98251.0,98250.0,1.93156068]
[1740112371273,0.32229921,98251.0,98250.0,1.89984983]
[1740112373755,0.32229921,98251.0,98250.0,1.94214764]
[1740112374010,0.32315001,98251.0,98250.0,1.94214764]
[1740112374864,0.32315001,98251.0,98250.0,1.97385311]
[1740112375544,0.32315001,98251.0,98250.0,1.94214764]
[1740112376477,0.32315001,98251.0,98250.0,1.97385509]
[1740112376844,0.32315001,98251.0,98250.0,1.94214764]
[1740112377255,0.32315001,98251.0,98250.0,1.9738571]
[1740112381281,0.32315001,98251.0,98250.0,0.4738571]
[1740112381988,0.32315001,98251.0,98250.0,0.3954571]
[1740112383162,0.32315001,98251.0,98250.0,0.3493571]
[1740112383577,0.32315001,98251.0,98250.0,1.8493571]
[1740112383772,0.32315001,98251.0,98250.0,1.81764764]
[1740112386950,0.32315001,98251.0,98250.0,0.31764764]
[1740112388390,0.32315001,98251.0,98250.0,0.27534983]
[1740112390375,0.32315001,98251.0,98250.0,0.30710746]
[1740112391014,0.32315001,98251.0,98250.0,1.80710746]
[1740112392038,0.32315001,98251.0,98250.0,1.84488478]
[1740112393426,0.32315001,98251.0,98250.0,0.34488478]
[1740112396185,0.32315001,98251.0,98250.0,0.35208478]
[1740112397274,0.32315001,98251.0,98250.0,1.85208478]
[1740112399591,0.32315001,98251.0,98250.0,0.35208478]
[1740112403149,0.32315001,98251.0,98250.0,0.34488478]
[1740112404233,0.32315001,98251.0,98250.0,0.17212224]
[1740112404433,0.57382001,98251.0,98250.0,0.17212224]
[1740112404641,0.28378639,98251.0,98250.0,0.11636461]
[1740112405003,0.28378639,98251.0,98250.0,0.013]
[1740112405711,0.11111639,98251.0,98250.0,0.11564569]
[1740112405903,0.13111639,98251.0,98250.0,0.11564569]
[1740112406181,0.13111639,98251.0,98250.0,0.10264569]
[1740112406348,0.13111639,98251.0,98250.0,0.10864569]
[1740112406551,0.13111639,98251.0,98250.0,0.11364569]
[1740112407260,0.13111639,98251.0,98250.0,0.10864569]
[1740112408032,0.13111639,98251.0,98250.0,0.10264569]
[1740112408255,0.45341639,98251.0,98250.0,0.10264569]
[1740112408613,0.45341639,98251.0,98250.0,0.11464569]
[1740112408929,0.45341639,98251.0,98250.0,0.10264569]
[1740112409187,0.45341639,98251.0,98250.0,0.11464569]
[1740112412848,0.35683493,98251.0,98250.0,0.11464569]
[1740112412990,0.3423,98251.0,98250.0,0.11464569]
[1740112413195,0.32525417,98251.0,98250.0,0.11464569]
[1740112413913,0.47792417,98251.0,98250.0,0.11464569]
[1740112414647,0.37620256,98251.0,98250.0,0.11464569]
[1740112421596,0.37705336,98251.0,98250.0,0.11464569]
[1740112446916,0.22438336,98251.0,98250.0,0.11464569]
[1740112447139,0.0008508,98251.0,98250.0,0.39121669]
[1740112447353,0.0008508,98251.0,98250.0,0.42303907]
[1740112447690,0.0008508,98251.0,98250.0,1.92303907]
[1740112448699,0.0008508,98251.0,98250.0,1.91803907]
[1740112449472,0.0008508,98251.0,98250.0,1.92503907]
[1740112449769,0.0008508,98251.0,98250.0,0.42503907]
[1740112451897,0.0008508,98251.0,98250.0,0.42583535]
[1740112452232,0.0008508,98251.0,98250.0,0.41883535]
[1740112452434,0.0008508,98251.0,98250.0,0.42583535]
[1740112452845,0.0008508,98251.0,98250.0,0.43283535]
[1740112453052,0.0008508,98251.0,98250.0,0.42583535]
[1740112453251,0.0008508,98251.0,98250.0,0.43283535]
[1740112456228,0.0008508,98251.0,98250.0,0.45338306]
[1740112459777,0.0008508,98251.0,98250.0,2.65338306]
[1740112465901,0.0008508,98251.0,98250.0,2.66058306]
[1740112470456,0.0008508,98251.0,98250.0,1.16058306]
[1740112470856,0.0008508,98251.0,98250.0,2.66058306]
[1740112477480,0.0008508,98251.0,98250.0,1.16058306]
[1740112477910,0.0008508,98251.0,98250.0,2.66058306]
[1740112480884,0.0008508,98251.0,98250.0,1.16058306]
[1740112481439,0.0008508,98251.0,98250.0,2.66058306]
[1740112484201,0.0008508,98251.0,98250.0,2.65358306]
[1740112484630,0.0008508,98251.0,98250.0,2.64658306]
[1740112484799,0.0008508,98251.0,98250.0,2.65358306]
[1740112485261,0.0008508,98251.0,98250.0,2.64658306]
[1740112485606,0.0008508,98251.0,98250.0,2.65358306]
[1740112485810,0.0008508,98251.0,98250.0,2.64658306]
[1740112486243,0.0008508,98251.0,98250.0,2.65358306]
[1740112487075,0.0008508,98251.0,98250.0,2.64658306]
[1740112487566,0.0008508,98251.0,98250.0,2.65358306]
[1740112488409,0.0008508,98251.0,98250.0,2.66058306]
[1740112505778,0.0008508,98251.0,98250.0,1.16058306]
[1740112507624,0.0008508,98251.0,98250.0,1.02168678]
[1740112507831,0.0008508,98251.0,98250.0,0.32888678]
[1740112508185,0.0008508,98251.0,98250.0,0.16901578]
[1740112508378,0.0008508,98251.0,98250.0,0.15566807]
[1740112508997,0.0008508,98251.0,98250.0,0.12384569]
[1740112509203,0.0008508,98251.0,98250.0,0.27651669]
[1740112509417,0.0008508,98251.0,98250.0,0.26951669]
[1740112509715,0.0008508,98251.0,98250.0,0.27651669]
[1740112510070,0.0008508,98251.0,98250.0,0.26951669]
[1740112510476,0.0008508,98251.0,98250.0,0.27651669]
[1740112510910,0.0008508,98251.0,98250.0,0.26951669]
[1740112511147,0.0008508,98251.0,98250.0,0.27551669]
[1740112512165,0.0008508,98251.0,98250.0,0.30727225]
[1740112512375,0.0008508,98251.0,98250.0,0.27551669]
[1740112512547,0.0008508,98251.0,98250.0,0.30726753]
[1740112512753,0.0008508,98251.0,98250.0,0.27551669]
[1740112516328,0.0008508,98251.0,98250.0,1.77551669]
[1740112518060,0.0008508,98251.0,98250.0,0.27551669]
[1740112518863,0.0008508,98251.0,98250.0,0.30725681]
[1740112519844,0.0008508,98251.0,98250.0,0.38635681]
[1740112523415,0.0008508,98251.0,98250.0,1.88635681]
[1740112525851,0.0008508,98251.0,98250.0,0.38635681]
[1740112526281,0.0008508,98251.0,98250.0,0.30725681]
[1740112527946,0.0008508,98251.0,98250.0,0.30005681]
[1740112528140,0.0008508,98251.0,98250.0,0.11564569]
[1740112528340,0.0008508,98251.0,98250.0,0.27551669]
[1740112528567,0.0008508,98251.0,98250.0,0.30726753]
[1740112528768,0.0008508,98251.0,98250.0,0.27551669]
[1740112528975,0.0008508,98251.0,98250.0,0.3072673]
[1740112529707,0.0008508,98251.0,98250.0,1.8072673]
[1740112532841,0.0008508,98251.0,98250.0,0.3072673]
[1740112533259,0.0008508,98251.0,98250.0,1.8072673]
[1740112536224,0.0008508,98251.0,98250.0,0.3072673]
[1740112536642,0.0008508,98251.0,98250.0,1.8072673]
[1740112539767,0.0008508,98251.0,98250.0,0.3072673]
[1740112540339,0.0008508,98251.0,98250.0,1.8072673]
[1740112543249,0.0008508,98251.0,98250.0,0.3072673]
[1740112543733,0.0008508,98251.0,98250.0,1.8072673]